lending/lending_fUSD_20240522
["ID","MTS","AMOUNT","RATE_DAILY","PERIOD"]
[327725279,1716384633054,-750.0,0.00023,2]
[327725280,1716384633063,-151.92,0.00023002,2]
[327725281,1716384633073,-151.92,0.00023011,2]
[327725282,1716384633082,-151.92,0.0002302,2]
[327725283,1716384633092,-151.92,0.00023029,2]
[327725284,1716384633104,-151.92,0.00023038,2]
[327725285,1716384633114,-154.94429312,0.00023042,2]
[327725286,1716384633124,-151.92,0.00023046,2]
[327725287,1716384633133,-151.92,0.00023055,2]
[327725288,1716384633143,-151.92,0.00023064,2]
[327725289,1716384633153,-151.92,0.00023073,2]
[327725290,1716384633162,-151.92,0.00023082,2]
[327725291,1716384633172,-169.00998554,0.00023184,2]
[327725292,1716384633181,-154.90389289,0.00023192,2]
[327725293,1716384633192,-800.0,0.00023205,2]
[327725294,1716384633202,-154.94429312,0.00023237,2]
[327725295,1716384633211,-151.37770386,0.00023261,2]
[327725296,1716384633221,-160.26120114,0.000233,2]
[327725297,1716384633230,-800.0,0.0002337,2]
[327725298,1716384633242,-2004.82313321,0.000234,2]
[327725299,1716384633254,-159.16129054,0.00023588,2]
[327725300,1716384633264,-151.37770386,0.0002366,2]
[327725301,1716384633273,-151.37770386,0.00023806,2]
[327725302,1716384633284,-151.37770386,0.00023855,2]
[327725303,1716384633294,-800.0,0.0002389,2]
[327725304,1716384633303,-165.21,0.00023914,2]
[327725305,1716384633313,-857.82,0.00023914,2]
[327725306,1716384633323,-675.545596,0.00023928,2]
[327725307,1716384633335,-235.507659,0.00023928,2]
[327725308,1716384633347,-420.524748,0.00023928,2]
[327725309,1716384633357,-236.330709,0.00023928,2]
[327725310,1716384633366,-168.886399,0.00023928,2]
[327725311,1716384633376,-420.524748,0.00023928,2]
[327725312,1716384633386,-235.507659,0.00023928,2]
[327725313,1716384633396,-186.01597,0.00023928,2]
[327725314,1716384633405,-236.330708,0.00023928,2]
[327725315,1716384633415,-506.659198,0.00023928,2]
[327725316,1716384633424,-168.886399,0.00023928,2]
[327725317,1716384633434,-420.524747,0.00023928,2]
[327725318,1716384633444,-235.507659,0.00023928,2]
[327725319,1716384633453,-236.330708,0.00023928,2]
[327725320,1716384633463,-506.659197,0.00023928,2]
[327725321,1716384633472,-154.94429312,0.00023985,2]
[327725322,1716384633482,-151.37770386,0.00024039,2]
[327725323,1716384633491,-154.94429312,0.00024107,2]
[327725324,1716384633500,-800.0,0.00024192,2]
[327725325,1716384633510,-156.06,0.00024224,2]
[327725326,1716384633519,-675.545596,0.00024227,2]
[327725327,1716384633529,-420.524748,0.00024227,2]
[327725328,1716384633539,-236.330709,0.00024227,2]
[327725329,1716384633548,-168.886399,0.00024227,2]
[327725330,1716384633558,-420.524748,0.00024227,2]
[327725331,1716384633567,-236.330708,0.00024227,2]
[327725332,1716384633577,-506.659198,0.00024227,2]
[327725333,1716384633587,-168.886399,0.00024227,2]
[327725334,1716384633599,-420.524747,0.00024227,2]
[327725335,1716384633609,-236.330708,0.00024227,2]
[327725336,1716384633618,-506.659197,0.00024227,2]
[327725337,1716384633628,-180.0,0.0002423,2]
[327725338,1716384633638,-154.49054119,0.00024262,2]
[327725339,1716384633647,-154.05647712,0.00024302,2]
[327725340,1716384633656,-151.37770386,0.00024466,2]
[327725341,1716384633667,-800.0,0.00024493,2]
[327725342,1716384633676,-152.98488688,0.00024497,2]
[327725343,1716384633686,-1478.14157316,0.000245,3]
[327725344,1716384633696,-836.35,0.00024518,2]
[327725345,1716384633836,-675.545596,0.00024526,2]
[327725346,1716384633852,-420.524748,0.00024526,2]
[327725347,1716384633862,-236.330709,0.00024526,2]
[327725348,1716384633871,-168.886399,0.00024526,2]
[327725349,1716384633881,-420.524748,0.00024526,2]
[327725350,1716384633891,-236.330708,0.00024526,2]
[327725351,1716384633901,-506.659198,0.00024526,2]
[327725352,1716384633911,-168.886399,0.00024526,2]
[327725353,1716384633921,-420.524747,0.00024526,2]
[327725354,1716384633930,-236.330708,0.00024526,2]
[327725355,1716384633939,-506.659197,0.00024526,2]
[327725356,1716384633949,-201.27,0.00024539,2]
[327725357,1716384633958,-154.90389289,0.00024582,2]
[327725358,1716384633967,-151.37770386,0.00024585,2]
[327725359,1716384633977,-521.31,0.0002464,3]
[327725360,1716384633987,-173.76,0.00024648,3]
[327725361,1716384633996,-152.98488688,0.0002465,2]
[327725362,1716384634006,-302.39,0.00024658,2]
[327725363,1716384634017,-250.0,0.00024658,2]
[327725364,1716384634026,-152.9848869,0.00024663,2]
[327725365,1716384634036,-300.0,0.000247,9]
[327725366,1716384634046,-151.37770386,0.00024731,2]
[327725367,1716384634056,-155.78646645,0.0002476,2]
[327725368,1716384634065,-10000.0,0.000248,2]
[327725369,1716384634075,-547.45858614,0.000248,2]
[327725370,1716384634085,-700.0,0.000248,9]
[327725371,1716384634094,-675.545596,0.00024825,2]
[327725372,1716384634105,-420.524748,0.00024825,2]
[327725373,1716384634115,-236.330709,0.00024825,2]
[327725374,1716384634125,-168.886399,0.00024825,2]
[327725375,1716384634134,-420.524748,0.00024825,2]
[327725376,1716384634144,-236.330708,0.00024825,2]
[327725377,1716384634154,-506.659198,0.00024825,2]
[327725378,1716384634163,-168.886399,0.00024825,2]
[327725379,1716384634173,-420.524747,0.00024825,2]
[327725380,1716384634183,-236.330708,0.00024825,2]
[327725381,1716384634193,-506.659197,0.00024825,2]
[327725382,1716384634203,-800.0,0.00024877,2]
[327725383,1716384634213,-155.0,0.00024897,2]
[327725384,1716384634222,-197.01425272,0.00024897,4]
[327725385,1716384634232,-291.60473984,0.00024898,2]
[327725386,1716384634242,-312.15600045,0.00024898,2]
[327725387,1716384634257,-8306.31150168,0.00024898,2]
[327725388,1716384634267,-298.45560487,0.00024899,2]
[327725389,1716384634276,-9643.35043134,0.00024899,2]
[327725390,1716384634286,-5583.01383265,0.000249,2]
[327725391,1716384634297,-176.59051276,0.000249,2]
[327725392,1716384634307,-174.238497,0.000249,2]
[327725393,1716384634316,-199.94056724,0.000249,2]
[327725394,1716384634325,-548.0223,0.000249,2]
[327725395,1716384634338,-168.06517559,0.000249,2]
[327725396,1716384634351,-1000.0,0.000249,2]
[327725397,1716384634361,-1100.0,0.000249,9]
[327725398,1716384634371,-1722.86761595,0.000249,2]
[327725399,1716384634380,-326.11337643,0.000249,2]
[327725400,1716384634390,-800.0,0.00024959,2]
[327725401,1716384634400,-800.0,0.00024959,2]
[327725402,1716384634411,-154.90389289,0.00024961,2]
[327725403,1716384634420,-904.0,0.0002497,15]
[327725404,1716384634430,-170.0,0.0002497,15]
[327725405,1716384634440,-904.0,0.0002498,15]
[327725406,1716384634449,-170.0,0.0002498,15]
[327725407,1716384634460,-500.0,0.00024989,2]
[327725408,1716384634469,-355.09072427,0.00024989,2]
[327725409,1716384634480,-500.0,0.00024989,2]
[327725410,1716384634489,-500.0,0.00024989,2]
[327725411,1716384634500,-500.0,0.00024989,2]
[327725412,1716384634509,-372.31380832,0.00024989,2]
[327725413,1716384634518,-500.0,0.00024989,2]
[327725414,1716384634528,-904.0,0.0002499,15]
[327725415,1716384634537,-9155.08316628,0.0002499,2]
[327725416,1716384634547,-170.0,0.0002499,15]
[327725417,1716384634557,-205.48746961,0.0002499,2]
[327725418,1716384634566,-151.28,0.0002499,2]
[327725419,1716384634576,-151.28,0.0002499,2]
[327725420,1716384634585,-151.28,0.0002499,2]
[327725421,1716384634596,-151.28,0.0002499,2]
[327725422,1716384634605,-151.28,0.0002499,2]
[327725423,1716384634615,-228.06770619,0.00024996,2]
[327725424,1716384634625,-559.1270682,0.00024998,2]
[327725425,1716384634635,-155.0,0.00024998,2]
[327725426,1716384634644,-685.99323766,0.00024998,2]
[327725427,1716384634654,-1380.30322781,0.00024998,2]
[327725428,1716384634663,-1552.82804364,0.00024998,2]
[327725429,1716384634673,-158.26245048,0.00024998,2]
[327725430,1716384634682,-257.85125369,0.00024998,2]
[327725431,1716384634692,-6239.63008206,0.00024998,2]
[327725432,1716384634702,-155.11805651,0.00024998,3]
[327725433,1716384634712,-158.97058847,0.00024998,2]
[327725434,1716384634722,-155.13360489,0.00024998,2]
[327725435,1716384634731,-246.62401169,0.00024998,2]
[327725436,1716384634741,-156.63963123,0.00024998,2]
[327725437,1716384634751,-161.20739138,0.00024998,2]
[327725438,1716384634760,-1538.73872114,0.00024998,2]
[327725439,1716384634770,-155.0,0.00024998,2]
[327725440,1716384634779,-155.52154493,0.00024998,2]
[327725441,1716384634789,-168.44065273,0.00024998,2]
[327725442,1716384634798,-92885.79361159,0.00025,2]
[327725443,1716384634836,-753.66321503,0.00025,2]
[327725460,1716384638849,-1745.71576553,0.00013944,2]
[327725461,1716384638860,-2046409.38364584,0.00025,2]
[327725462,1716384638870,-248.97029145,0.00025,2]
[327725463,1716384638879,-224.2998362,0.00025,2]
[327725464,1716384638889,-25254.88926961,0.00025,7]
[327725465,1716384638900,-160.26120114,0.00025029,2]
[327725466,1716384638909,-675.545596,0.00025124,2]
[327725467,1716384638919,-420.524748,0.00025124,2]
[327725468,1716384638928,-236.330709,0.00025124,2]
[327725469,1716384638940,-168.886399,0.00025124,2]
[327725470,1716384638952,-420.524748,0.00025124,2]
[327725471,1716384638961,-236.330708,0.00025124,2]
[327725472,1716384638971,-506.659198,0.00025124,2]
[327725473,1716384638980,-168.886399,0.00025124,2]
[327725474,1716384638989,-420.524747,0.00025124,2]
[327725475,1716384638999,-236.330708,0.00025124,2]
[327725476,1716384639009,-506.659197,0.00025124,2]
[327725477,1716384639019,-160.26120114,0.0002526,2]
[327725478,1716384639028,-166.29644051,0.00025369,2]
[327725479,1716384639038,-151.37770386,0.00025482,2]
[327725480,1716384639047,-151.37770386,0.00025529,2]
[327725481,1716384639057,-154.94429312,0.00025704,2]
[327725482,1716384639066,-800.0,0.00025836,2]
[327725484,1716384639076,-5583.01383255,0.00025855,2]
[327725486,1716384639086,-154.05647712,0.00025891,2]
[327725488,1716384639096,-154.94429312,0.0002592,2]
[327725490,1716384639106,-154.05647712,0.00025922,2]
[327725492,1716384639116,-154.94429312,0.00025932,2]
[327725494,1716384639125,-347.52,0.00026018,3]
[327725496,1716384639135,-8306.31150168,0.00026065,2]
[327725498,1716384639145,-160.26120114,0.00026095,2]
[327725500,1716384639155,-1722.86761589,0.00026255,2]
[327725502,1716384639165,-151.37770386,0.000263,2]
[327725504,1716384639175,-170.0,0.00026354,2]
[327725506,1716384639184,-154.05647712,0.00026798,2]
[327725508,1716384639195,-201.27,0.00026803,2]
[327725510,1716384639205,-5583.01383255,0.00026809,2]
[327725512,1716384639215,-160.26120114,0.00026811,2]
[327725514,1716384639225,-857.82,0.00026903,2]
[327725516,1716384639236,-154.94429312,0.00026907,2]
[327725518,1716384639247,-155.0,0.00027,4]
[327725520,1716384639261,-297.41376224,0.00027,2]
[327725522,1716384639271,-151.37770386,0.00027012,2]
[327725524,1716384639281,-159.36999113,0.00027169,2]
[327725526,1716384639293,-151.37770386,0.00027223,2]
[327725528,1716384639303,-8306.31150168,0.00027232,2]
[327725530,1716384639313,-836.35,0.00027257,2]
[327725532,1716384639323,-1575.91,0.00027397,5]
[327725534,1716384639334,-1575.91,0.00027397,5]
[327725536,1716384639344,-1575.91,0.00027397,5]
[327725538,1716384639356,-1575.91,0.00027397,5]
[327725540,1716384639366,-1575.91,0.00027397,5]
[327725542,1716384639375,-1575.91,0.00027397,5]
[327725544,1716384639385,-1575.91,0.00027397,5]
[327725546,1716384639396,-1575.91,0.00027397,5]
[327725547,1716384639406,-1575.91,0.00027397,5]
[327725549,1716384639415,-1575.91,0.00027397,5]
[327725551,1716384639425,-1575.91,0.00027397,5]
[327725553,1716384639435,-1575.91,0.00027397,5]
[327725555,1716384639445,-1575.91,0.00027397,5]
[327725557,1716384639455,-1575.91,0.00027397,5]
[327725560,1716384639465,-1575.91,0.00027397,5]
[327725562,1716384639475,-1575.91,0.00027397,5]
[327725564,1716384639484,-1575.91,0.00027397,5]
[327725566,1716384639494,-1575.91,0.00027397,5]
[327725567,1716384639503,-1575.91,0.00027397,5]
[327725569,1716384639513,-1575.91,0.00027397,5]
[327725571,1716384639522,-1575.91,0.00027397,5]
[327725574,1716384639533,-1575.91,0.00027397,5]
[327725576,1716384639543,-1575.91,0.00027397,5]
[327725578,1716384639553,-1575.97270182,0.00027397,5]
[327725580,1716384639562,-424.78269338,0.000274,2]
[327725582,1716384639572,-402.59,0.000274,2]
[327725584,1716384639582,-402.59,0.000274,2]
[327725585,1716384639591,-402.59,0.000274,2]
[327725587,1716384639601,-402.59,0.000274,2]
[327725590,1716384639613,-402.59,0.000274,2]
[327725591,1716384639622,-402.59,0.000274,2]
[327725593,1716384639632,-402.59,0.000274,2]
[327725595,1716384639642,-402.59,0.000274,2]
[327725598,1716384639652,-402.59,0.000274,2]
[327725599,1716384639662,-402.59,0.000274,2]
[327725601,1716384639672,-154.49054119,0.00027413,2]
[327725603,1716384639682,-1722.86761589,0.0002761,2]
[327725605,1716384639691,-5583.01383255,0.00027764,2]
[327725607,1716384639700,-151.37770386,0.00027917,2]
[327725609,1716384639710,-15074.11075342,0.00028,2]
[327725611,1716384639720,-409.74863585,0.00028,2]
[327725613,1716384639730,-180.19382766,0.00028,2]
[327725615,1716384639740,-600.0,0.00028,5]
[327725617,1716384639750,-150.0,0.00028012,2]
[327725619,1716384639760,-154.94429312,0.00028043,2]
[327725621,1716384639770,-151.37770386,0.00028052,2]
[327725623,1716384639780,-160.26120114,0.0002809,2]
[327725625,1716384639791,-154.94429312,0.00028189,2]
[327725627,1716384639800,-151.37770386,0.00028207,2]
[327725629,1716384639810,-150.0,0.00028209,2]
[327725631,1716384639820,-150.0,0.00028226,2]
[327725633,1716384639830,-150.0,0.00028323,2]
[327725635,1716384639841,-1407.34908957,0.00028398,2]
[327725637,1716384639850,-8306.31150168,0.00028398,2]
[327725639,1716384639863,-154.94429312,0.0002841,2]
[327725641,1716384639873,-154.05647712,0.00028446,2]
[327725643,1716384639883,-154.49054119,0.0002846,2]
[327725645,1716384639893,-150.0,0.00028571,2]
[327725647,1716384639903,-19623.63845774,0.000286,2]
[327725649,1716384639913,-166.73621259,0.000286,2]
[327725651,1716384639923,-160.26120114,0.00028619,2]
[327725653,1716384639933,-150.0,0.00028687,2]
[327725654,1716384639943,-154.05647712,0.00028688,2]
[327725655,1716384639953,-150.0,0.0002871,2]
[327725656,1716384639965,-5583.01383255,0.00028718,2]
[327725657,1716384639974,-150.0,0.000288,2]
[327725658,1716384639985,-151.37770386,0.00028816,2]
[327725659,1716384639995,-150.0,0.00028839,2]
[327725660,1716384640005,-151.37770386,0.00028853,2]
[327725661,1716384640015,-151.37770386,0.00028898,2]
[327725662,1716384640025,-150.0,0.00028905,2]
[327725663,1716384640036,-1722.86761589,0.00028965,2]
[327725664,1716384640046,-821.06102544,0.00029,8]
[327725665,1716384640057,-150.0,0.00029032,2]
[327725666,1716384640068,-154.94429312,0.00029049,2]
[327725667,1716384640077,-201.27,0.00029066,2]
[327725668,1716384640088,-150.0,0.00029089,2]
[327725669,1716384640101,-150.0,0.00029125,2]
[327725670,1716384640114,-150.0,0.00029181,2]
[327725671,1716384640124,-150.0,0.0002919,2]
[327725672,1716384640134,-150.0,0.000292,2]
[327725673,1716384640144,-154.90389293,0.000292,2]
[327725674,1716384640154,-154.05647712,0.00029222,2]
[327725675,1716384640164,-150.0,0.00029302,2]
[327725676,1716384640174,-150.0,0.00029324,2]
[327725677,1716384640185,-150.0,0.00029366,2]
[327725678,1716384640195,-150.0,0.00029373,2]
[327725679,1716384640209,-151.37770386,0.00029382,2]
[327725680,1716384640220,-223.0,0.000294,2]
[327725681,1716384640231,-2507.743752,0.000294,3]
[327725682,1716384640242,-353.0,0.000294,2]
[327725683,1716384640255,-1000.0,0.000294,2]
[327725684,1716384640266,-150.0,0.00029417,2]
[327725685,1716384640276,-150.0,0.00029439,2]
[327725686,1716384640287,-7759.18671295,0.00029485,2]
[327725687,1716384640298,-225.80367726,0.000295,3]
[327725688,1716384640308,-1407.34908957,0.00029565,2]
[327725689,1716384640317,-8306.31150168,0.00029565,2]
[327725690,1716384640327,-150.0,0.00029571,2]
[327725691,1716384640339,-199.94056723,0.00029641,2]
[327725692,1716384640349,-151.28,0.00029663,2]
[327725693,1716384640362,-5583.01383255,0.00029673,2]
[327725694,1716384640373,-155.46791382,0.00029713,2]
[327725695,1716384640384,-151.8895225,0.00029728,2]
[327725696,1716384640394,-150.0,0.00029784,2]
[327725697,1716384640406,-1500.0,0.000298,10]
[327725698,1716384640417,-154.49054119,0.00029805,2]
[327725700,1716384640428,-160.26120114,0.00029855,2]
[327725702,1716384640439,-150.0,0.00029867,2]
[327725704,1716384640451,-150.0,0.00029873,2]
[327725705,1716384640462,-857.82,0.00029892,2]
[327725706,1716384640472,-500.0,0.000299,2]
[327725707,1716384640482,-500.0,0.000299,2]
[327725708,1716384640492,-500.0,0.000299,2]
[327725709,1716384640502,-500.0,0.000299,2]
[327725710,1716384640511,-500.0,0.000299,2]
[327725711,1716384640521,-500.0,0.000299,2]
[327725712,1716384640531,-500.0,0.000299,2]
[327725713,1716384640541,-500.0,0.000299,2]
[327725714,1716384640551,-500.0,0.000299,2]
[327725715,1716384640669,-500.0,0.000299,2]
[327725716,1716384640680,-500.0,0.000299,2]
[327725717,1716384640690,-500.0,0.000299,2]
[327725718,1716384640699,-500.0,0.000299,2]
[327725719,1716384640709,-500.0,0.000299,2]
[327725720,1716384640719,-500.0,0.000299,2]
[327725721,1716384640729,-500.0,0.000299,2]
[327725722,1716384640738,-500.0,0.000299,2]
[327725723,1716384640748,-500.0,0.000299,2]
[327725724,1716384640757,-500.0,0.000299,2]
[327725725,1716384640767,-500.0,0.000299,2]
[327725726,1716384640776,-500.0,0.000299,2]
[327725727,1716384640785,-500.0,0.000299,2]
[327725728,1716384640796,-500.0,0.000299,2]
[327725729,1716384640805,-500.0,0.000299,2]
[327725730,1716384640815,-500.0,0.000299,2]
[327725731,1716384640824,-500.0,0.000299,2]
[327725732,1716384640834,-500.0,0.000299,2]
[327725733,1716384640843,-500.0,0.000299,2]
[327725734,1716384640855,-500.0,0.000299,2]
[327725735,1716384640864,-500.0,0.000299,2]
[327725736,1716384640874,-500.0,0.000299,2]
[327725737,1716384640883,-500.0,0.000299,2]
[327725738,1716384640892,-500.0,0.000299,2]
[327725739,1716384640901,-500.0,0.000299,2]
[327725740,1716384640910,-500.0,0.000299,2]
[327725741,1716384640918,-500.0,0.000299,2]
[327725742,1716384640928,-500.0,0.000299,2]
[327725743,1716384640936,-500.0,0.000299,2]
[327725744,1716384640945,-500.0,0.000299,2]
[327725745,1716384640954,-500.0,0.000299,2]
[327725746,1716384640963,-500.0,0.000299,2]
[327725747,1716384640972,-500.0,0.000299,2]
[327725748,1716384640982,-500.0,0.000299,2]
[327725749,1716384640991,-500.0,0.000299,2]
[327725750,1716384640999,-500.0,0.000299,2]
[327725751,1716384641008,-500.0,0.000299,2]
[327725752,1716384641018,-500.0,0.000299,2]
[327725753,1716384641027,-500.0,0.000299,2]
[327725754,1716384641035,-500.0,0.000299,2]
[327725755,1716384641044,-500.0,0.000299,2]
[327725756,1716384641053,-500.0,0.000299,2]
[327725757,1716384641062,-500.0,0.000299,2]
[327725758,1716384641071,-500.0,0.000299,2]
[327725759,1716384641080,-500.0,0.000299,2]
[327725760,1716384641089,-500.0,0.000299,2]
[327725761,1716384641098,-500.0,0.000299,2]
[327725762,1716384641109,-500.0,0.000299,2]
[327725763,1716384641118,-500.0,0.000299,2]
[327725764,1716384641127,-500.0,0.000299,2]
[327725765,1716384641136,-500.0,0.000299,2]
[327725766,1716384641144,-500.0,0.000299,2]
[327725767,1716384641154,-500.0,0.000299,2]
[327725768,1716384641163,-500.0,0.000299,2]
[327725769,1716384641172,-500.0,0.000299,2]
[327725770,1716384641182,-500.0,0.000299,2]
[327725771,1716384641191,-500.0,0.000299,2]
[327725772,1716384641200,-500.0,0.000299,2]
[327725773,1716384641212,-500.0,0.000299,2]
[327725774,1716384641221,-500.0,0.000299,2]
[327725775,1716384641230,-500.0,0.000299,2]
[327725776,1716384641240,-500.0,0.000299,2]
[327725777,1716384641252,-500.0,0.000299,2]
[327725778,1716384641263,-500.0,0.000299,2]
[327725779,1716384641272,-500.0,0.000299,2]
[327725780,1716384641281,-500.0,0.000299,2]
[327725781,1716384641291,-500.0,0.000299,2]
[327725782,1716384641300,-500.0,0.000299,2]
[327725783,1716384641309,-500.0,0.000299,2]
[327725784,1716384641318,-500.0,0.000299,2]
[327725785,1716384641328,-500.0,0.000299,2]
[327725786,1716384641337,-1900.0,0.000299,10]
[327725787,1716384641345,-500.0,0.000299,2]
[327725788,1716384641352,-500.0,0.000299,2]
[327725789,1716384641363,-500.0,0.000299,2]
[327725790,1716384641372,-500.0,0.000299,2]
[327725791,1716384641381,-500.0,0.000299,2]
[327725792,1716384641390,-500.0,0.000299,2]
[327725793,1716384641400,-500.0,0.000299,2]
[327725794,1716384641409,-500.0,0.000299,2]
[327725795,1716384641418,-500.0,0.000299,2]
[327725796,1716384641428,-500.0,0.000299,2]
[327725797,1716384641437,-500.0,0.000299,2]
[327725798,1716384641447,-500.0,0.000299,2]
[327725799,1716384641456,-500.0,0.000299,2]
[327725800,1716384641464,-500.0,0.000299,2]
[327725801,1716384641473,-500.0,0.000299,2]
[327725802,1716384641482,-500.0,0.000299,2]
[327725803,1716384641491,-500.0,0.000299,2]
[327725804,1716384641500,-500.0,0.000299,2]
[327725805,1716384641509,-500.0,0.000299,2]
[327725806,1716384641518,-500.0,0.000299,2]
[327725807,1716384641527,-500.0,0.000299,2]
[327725808,1716384641537,-500.0,0.000299,2]
[327725809,1716384641546,-500.0,0.000299,2]
[327725810,1716384641555,-500.0,0.000299,2]
[327725811,1716384641565,-500.0,0.000299,2]
[327725812,1716384641573,-500.0,0.000299,2]
[327725813,1716384641582,-500.0,0.000299,2]
[327725814,1716384641591,-500.0,0.000299,2]
[327725815,1716384641600,-500.0,0.000299,2]
[327725816,1716384641611,-500.0,0.000299,2]
[327725817,1716384641620,-500.0,0.000299,2]
[327725818,1716384641628,-500.0,0.000299,2]
[327725819,1716384641637,-500.0,0.000299,2]
[327725820,1716384641645,-500.0,0.000299,2]
[327725821,1716384641653,-500.0,0.000299,2]
[327725822,1716384641661,-500.0,0.000299,2]
[327725823,1716384641669,-1500.0,0.000299,3]
[327725824,1716384641677,-500.0,0.000299,2]
[327725825,1716384641685,-500.0,0.000299,2]
[327725826,1716384641692,-500.0,0.000299,2]
[327725827,1716384641700,-500.0,0.000299,2]
[327725828,1716384641708,-500.0,0.000299,2]
[327725829,1716384641717,-500.0,0.000299,2]
[327725830,1716384641726,-500.0,0.000299,2]
[327725831,1716384641736,-500.0,0.000299,2]
[327725832,1716384641744,-500.0,0.000299,2]
[327725833,1716384641754,-500.0,0.000299,2]
[327725834,1716384641763,-500.0,0.000299,2]
[327725835,1716384641773,-500.0,0.000299,2]
[327725836,1716384641783,-500.0,0.000299,2]
[327725837,1716384641792,-500.0,0.000299,2]
[327725838,1716384641802,-500.0,0.000299,2]
[327725839,1716384641812,-500.0,0.000299,2]
[327725840,1716384641821,-500.0,0.000299,2]
[327725841,1716384641832,-500.0,0.000299,2]
[327725842,1716384641841,-500.0,0.000299,2]
[327725843,1716384641851,-30.08157451,0.000299,2]
[327725844,1716384642912,-469.91842549,0.000299,2]
[327725845,1716384642923,-500.0,0.000299,2]
[327725846,1716384642933,-500.0,0.000299,2]
[327725847,1716384642942,-500.0,0.000299,2]
[327725848,1716384642952,-500.0,0.000299,2]
[327725849,1716384642961,-500.0,0.000299,2]
[327725850,1716384642971,-500.0,0.000299,2]
[327725851,1716384642980,-500.0,0.000299,2]
[327725852,1716384642990,-500.0,0.000299,2]
[327725853,1716384642999,-500.0,0.000299,2]
[327725854,1716384643010,-500.0,0.000299,2]
[327725855,1716384643020,-500.0,0.000299,2]
[327725856,1716384643029,-500.0,0.000299,2]
[327725857,1716384643040,-500.0,0.000299,2]
[327725858,1716384643049,-500.0,0.000299,2]
[327725859,1716384643059,-150.0,0.00029948,2]
[327725860,1716384643068,-200.0,0.00029962,2]
[327725861,1716384643078,-150.0,0.00029967,2]
[327725862,1716384643088,-279.1586375,0.0002999,2]
[327725863,1716384643098,-23826.89758914,0.0003,4]
[327725864,1716384643108,-27719.47678882,0.0003,4]
[327725865,1716384643118,-14000.0,0.0003,4]
[327725866,1716384643128,-150.0,0.00030019,2]
[327725867,1716384643137,-150.0,0.00030086,2]
[327725868,1716384643146,-260.9883,0.000301,2]
[327725870,1716384643156,-178.43248333,0.00030102,2]
[327725871,1716384643167,-14633.7865774,0.0003011,2]
[327725872,1716384643177,-170.0,0.00030119,2]
[327725873,1716384643186,-1500.0,0.00030136,6]
[327725874,1716384643196,-176.59051275,0.00030138,2]
[327725875,1716384643206,-154.49054122,0.00030145,7]
[327725876,1716384643215,-160.26120114,0.00030172,7]
[327725877,1716384643225,-1655.602704,0.0003018,11]
[327725878,1716384643234,-1000.0,0.000302,11]
[327725879,1716384643247,-150.0,0.00030211,2]
[327725880,1716384643262,-1000.0,0.0003022,11]
[327725881,1716384643272,-150.0,0.00030222,2]
[327725882,1716384643282,-151.37770386,0.00030232,7]
[327725883,1716384643292,-156.9120435,0.00030232,7]